fUST/lending_fUST_20250419
["ID","MTS","AMOUNT","RATE_DAILY","PERIOD"]
[358391380,1745053849484,-589.83,0.00022191,2]
[358391381,1745053849494,-816.93,0.00022191,2]
[358391382,1745053849504,-500.0,0.00022191,2]
[358391383,1745053849514,-788.64,0.00022191,2]
[358391384,1745053849524,-500.0,0.00022191,2]
[358391385,1745053849535,-2638.39,0.00022191,2]
[358391386,1745053849545,-500.0,0.00022191,2]
[358391387,1745053849555,-500.0,0.00022191,2]
[358391388,1745053849565,-500.0,0.00022191,2]
[358391389,1745053849575,-151.0,0.00022191,7]
[358391390,1745053849585,-151.0,0.00022191,7]
[358391391,1745053849595,-151.0,0.00022191,7]
[358391392,1745053849604,-151.0,0.00022191,7]
[358391393,1745053849615,-500.0,0.00022191,2]
[358391394,1745053849625,-151.0,0.00022191,7]
[358391395,1745053849635,-500.0,0.00022191,2]
[358391396,1745053849644,-151.0,0.00022191,7]
[358391397,1745053849654,-500.0,0.00022191,2]
[358391398,1745053849666,-171.493624,0.00022191,7]
[358391399,1745053849679,-500.0,0.00022191,2]
[358391400,1745053849689,-151.0,0.00022191,7]
[358391401,1745053849699,-151.0,0.00022191,7]
[358391402,1745053849709,-500.0,0.00022191,2]
[358391403,1745053849720,-500.0,0.00022191,2]
[358391404,1745053849730,-992.8,0.00022191,2]
[358391405,1745053849742,-1238.09,0.00022191,2]
[358391406,1745053849751,-500.0,0.00022191,2]
[358391407,1745053849761,-500.0,0.00022191,2]
[358391408,1745053849771,-578.04,0.00022191,2]
[358391409,1745053849781,-500.0,0.00022191,2]
[358391410,1745053849790,-151.0,0.00022191,7]
[358391411,1745053849799,-151.0,0.00022191,7]
[358391412,1745053849809,-500.0,0.00022191,2]
[358391413,1745053849819,-500.0,0.00022191,2]
[358391414,1745053849829,-707.35,0.00022191,2]
[358391415,1745053849839,-567.93,0.00022191,2]
[358391416,1745053849849,-151.0,0.00022191,7]
[358391417,1745053849859,-151.0,0.00022191,7]
[358391418,1745053849869,-553.81,0.00022191,2]
[358391419,1745053849879,-500.0,0.00022191,2]
[358391420,1745053849889,-1077.86,0.00022191,2]
[358391421,1745053849898,-500.0,0.00022191,2]
[358391422,1745053849909,-3285.83120356,0.00022191,2]
[358391423,1745053849923,-416.86980072,0.00022191,2]
[358391424,1745053849941,-860.08543018,0.00022191,2]
[358391425,1745053850571,-160.0,0.00021715,2]
[358391426,1745053850581,-3971.89164941,0.00021801,2]
[358391427,1745053850591,-420.4931809,0.00021894,2]
[358391428,1745053850601,-500.0,0.00021917,2]
[358391429,1745053850611,-2952.88356554,0.00022191,2]
[358391430,1745053850621,-500.0,0.00022191,2]
[358391431,1745053850631,-500.0,0.00022191,2]
[358391432,1745053850640,-500.0,0.00022191,2]
[358391433,1745053850650,-3745.58,0.00022191,2]
[358391434,1745053850660,-500.0,0.00022191,2]
[358391435,1745053850674,-774.5,0.00022191,2]
[358391436,1745053850684,-500.0,0.00022191,2]
[358391437,1745053850695,-500.0,0.00022191,2]
[358391438,1745053850704,-1677.13,0.00022191,2]
[358391439,1745053850715,-540.22,0.00022191,2]
[358391440,1745053850724,-1378.72,0.00022191,2]
[358391441,1745053850734,-500.0,0.00022191,2]
[358391442,1745053850744,-500.0,0.00022191,2]
[358391443,1745053850755,-500.0,0.00022191,2]
[358391444,1745053850765,-527.39,0.00022191,2]
[358391445,1745053850776,-863.38,0.00022191,2]
[358391446,1745053850786,-4702.47397186,0.00022191,2]
[358391447,1745053850802,-1526.06602814,0.00022191,2]
[358391448,1745053850814,-500.0,0.00022191,2]
[358391449,1745053850825,-500.0,0.00022191,2]
[358391450,1745053850835,-500.0,0.00022191,2]
[358391451,1745053850844,-974.26,0.00022191,2]
[358391452,1745053850854,-5294.93,0.00022191,2]
[358391453,1745053850864,-500.0,0.00022191,2]
[358391454,1745053850873,-500.0,0.00022191,2]
[358391455,1745053850883,-593.0,0.00022191,2]
[358391456,1745053850892,-1156.85,0.00022191,2]
[358391457,1745053850902,-500.0,0.00022191,2]
[358391458,1745053850912,-550.1,0.00022191,2]
[358391459,1745053850921,-341.67,0.00022191,2]
[358391460,1745053850932,-504.25075611,0.00022191,2]
[358391461,1745053850942,-500.0,0.00022191,2]
[358391462,1745053850953,-500.0,0.00022191,2]
[358391463,1745053850963,-500.0,0.00022191,2]
[358391464,1745053850973,-500.0,0.00022191,2]
[358391465,1745053850983,-500.0,0.00022191,2]
[358391466,1745053850993,-1980.31,0.00022191,2]
[358391467,1745053851003,-500.0,0.00022191,2]
[358391468,1745053851013,-860.75,0.00022191,2]
[358391469,1745053851023,-544.29,0.00022191,2]
[358391470,1745053851033,-500.0,0.00022191,2]
[358391471,1745053851043,-500.0,0.00022191,2]
[358391472,1745053851053,-5825.30321575,0.00022191,2]
[358391473,1745053851065,-1553.67678425,0.00022191,2]
[358391474,1745053851075,-10922.43583467,0.00022191,2]
[358391475,1745053851087,-9470.24416533,0.00022191,2]
[358391476,1745053851097,-500.0,0.00022191,2]
[358391477,1745053851108,-597.12798757,0.00022191,2]
[358391493,1745054632776,10000.0,0.0001801,2]
[358391494,1745054656478,10000.0,0.0001801,2]
[358391495,1745054668418,10000.0,0.0001801,2]
[358391496,1745054677041,10000.0,0.0001801,2]
[358391497,1745054705496,10000.0,0.0001801,2]
[358391498,1745054713897,10000.0,0.0001801,2]
[358391499,1745054721313,10000.0,0.0001801,2]
[358391500,1745054731327,10000.0,0.0001801,2]
[358391501,1745054736635,10000.0,0.0001801,2]
[358391502,1745054742582,10000.0,0.0001801,2]
[358391503,1745054747889,10000.0,0.0001801,2]
[358391504,1745054765859,8960.03,0.0001801,2]
[358391545,1745055031984,-500.0,0.00019725,2]
[358391547,1745055031993,-167.75509615,0.00020734,2]
[358391569,1745055032178,-159.700461,0.00020802,2]
[358391571,1745055032188,-240.0,0.00020834,2]
[358391573,1745055032198,-41.68622984,0.00020834,2]
[358391577,1745055032218,-258.31377016,0.00020834,2]
[358391578,1745055032227,-681.20622984,0.00020835,2]
[358391583,1745055032267,-24218.79377016,0.00020835,2]
[358391585,1745055032276,-500.0,0.0002101,2]
[358391587,1745055032286,-819.11026227,0.00021786,2]
[358391588,1745055032296,-500.0,0.00021789,2]
[358391590,1745055032306,-500.0,0.00021789,2]
[358391591,1745055032315,-405.76982558,0.00021789,2]
[358391592,1745055032324,-1362.11612796,0.0002179,2]
[358391593,1745055032334,-999.999997,0.000218,2]
[358391594,1745055032343,-420.4931809,0.00021811,2]
[358391595,1745055032353,-160.0,0.00021811,2]
[358391596,1745055032362,-156.89,0.00021814,2]
[358391597,1745055032371,-103472.14079719,0.00021817,2]
[358391598,1745055032383,-30377.59516508,0.00021817,2]
[358391601,1745055038221,-15433.87757925,0.00021817,2]
[358391612,1745055042755,-0.02245609,0.00021817,2]
[358391617,1745055043546,-26464.59092103,0.00021817,2]
[358391618,1745055043556,-898.664978,0.0002189,15]
[358391619,1745055043566,-521.80387597,0.000219,3]
[358391620,1745055043579,-453.10311756,0.000219,3]
[358391624,1745055046137,-753.5,0.000219,3]
[358393032,1745056232287,-1000.0,0.00019617,2]
[358393033,1745056232300,-560.84723452,0.00019717,2]
[358393034,1745056232313,-500.0,0.00019725,2]
[358393035,1745056232327,-192.1621259,0.00020929,2]
[358393036,1745056232340,-4237.62809071,0.0002099,2]
[358393037,1745056232354,-1714.19236115,0.00021797,2]
[358393038,1745056232369,-300.0,0.00021798,2]
[358393039,1745056232380,-165.4889066,0.00021799,2]
[358393040,1745056232392,-300.0,0.00021815,2]
[358393041,1745056232403,-259.81883175,0.00021816,2]
[358393042,1745056232416,-156.89,0.00021816,2]
[358393043,1745056232433,-500.0,0.00021816,2]
[358393045,1745056232445,-500.0,0.00021816,2]
[358393047,1745056232459,-477.7411329,0.00021816,2]
[358393049,1745056232472,-478.23364369,0.00021816,2]
[358393051,1745056232485,-500.0,0.00021816,2]
[358393053,1745056232498,-500.0,0.00021816,2]
[358393054,1745056232511,-201.72487377,0.00021816,2]
[358393058,1745056232537,-298.27512623,0.00021816,2]
[358393060,1745056232550,-500.0,0.00021816,2]
[358393062,1745056232562,-500.0,0.00021816,2]
[358393063,1745056232574,-500.0,0.00021816,2]
[358393066,1745056232586,-500.0,0.00021816,2]
[358393068,1745056232598,-344.49900159,0.00021816,2]
[358393070,1745056232610,-495.38806346,0.00021816,2]
[358393072,1745056232621,-500.0,0.00021816,2]
[358393073,1745056232633,-500.0,0.00021816,2]
[358393075,1745056232644,-210.64428236,0.00021816,2]
[358393077,1745056232656,-500.0,0.00021816,2]
[358393079,1745056232668,-500.0,0.00021816,2]
[358393081,1745056232680,-500.0,0.00021816,2]
[358393083,1745056232691,-500.0,0.00021816,2]
[358393085,1745056232703,-268.05579735,0.00021816,2]
[358393087,1745056232715,-500.0,0.00021816,2]
[358393089,1745056232731,-500.0,0.00021816,2]
[358393091,1745056232744,-177.38852819,0.00021816,2]
[358393093,1745056232758,-443.92565366,0.00021816,2]
[358393094,1745056232771,-68636.24578073,0.00021817,2]
[358393103,1745056238664,-2048.40914661,0.000218,2]
[358393104,1745056238674,-62568.83795298,0.00021817,2]
[358393105,1745056238684,-420.4931809,0.00021896,2]
[358393106,1745056238694,-839.40992179,0.00021897,2]
[358393107,1745056238704,-160.0,0.00021897,2]
[358393108,1745056238713,-160.0,0.00021897,2]
[358393109,1745056238723,-160.0,0.00021897,2]
[358393110,1745056238733,-1730.13982234,0.000219,3]
[358393111,1745056238743,-151.0,0.00021904,2]
[358393112,1745056238752,-151.0,0.00021904,2]
[358393113,1745056238762,-207.4,0.00021904,2]
[358393114,1745056238771,-24903.31844266,0.00021917,2]
[358393115,1745056238781,-6774.52024201,0.00021917,3]
[358393116,1745056238792,-2870.61736538,0.00021917,3]
[358393117,1745056238803,-839.40992179,0.00021917,3]
[358393118,1745056238812,-499.99778247,0.00021917,2]
[358393119,1745056238821,-500.0,0.00021917,2]
[358393120,1745056238831,-159.54629284,0.00021917,2]
[358393121,1745056238840,-500.0,0.00021917,2]
[358393122,1745056238849,-500.0,0.00021917,2]
[358393123,1745056238859,-500.0,0.00021917,2]
[358393124,1745056238869,-500.0,0.00021917,2]
[358393125,1745056238878,-500.0,0.00021917,2]
[358393126,1745056238888,-500.0,0.00021917,2]
[358393127,1745056238897,-500.0,0.00021917,2]
[358393128,1745056238908,-500.0,0.00021917,2]
[358393129,1745056238917,-500.0,0.00021917,2]
[358393130,1745056238927,-500.0,0.00021917,2]
[358393131,1745056238937,-496.1416958,0.00021917,2]
[358393132,1745056238947,-500.0,0.00021917,2]
[358393133,1745056238957,-500.0,0.00021917,2]
[358393134,1745056238967,-500.0,0.00021917,2]
[358393135,1745056238979,-500.0,0.00021917,2]
[358393136,1745056238990,-972.69,0.00021917,2]
[358393137,1745056239000,-500.0,0.00021917,2]
[358393138,1745056239010,-500.0,0.00021917,2]
[358393139,1745056239020,-500.0,0.00021917,2]
[358393140,1745056239030,-500.0,0.00021917,2]
[358393141,1745056239039,-500.0,0.00021917,2]
[358393142,1745056239049,-500.0,0.00021917,2]
[358393143,1745056239059,-500.0,0.00021917,2]
[358393144,1745056239069,-500.0,0.00021917,2]
[358393145,1745056239079,-500.0,0.00021917,2]
[358393146,1745056239089,-500.0,0.00021917,2]
[358393147,1745056239099,-500.0,0.00021917,2]
[358393148,1745056239109,-500.0,0.00021917,2]
[358393149,1745056239119,-500.0,0.00021917,2]
[358393150,1745056239129,-709.96,0.00021917,2]
[358393151,1745056239139,-500.0,0.00021917,2]
[358393152,1745056239149,-504.26,0.00021917,2]
[358393153,1745056239159,-500.0,0.00021917,2]
[358393154,1745056239168,-791.43,0.00021917,2]
[358393155,1745056239178,-500.0,0.00021917,2]
[358393156,1745056239187,-506.53988071,0.00021917,2]
[358393157,1745056239197,-611.38,0.00021917,2]
[358393158,1745056239207,-500.0,0.00021917,2]
[358393159,1745056239217,-500.0,0.00021917,2]
[358393160,1745056239227,-500.0,0.00021917,2]
[358393161,1745056239237,-612.3,0.00021917,2]
[358393162,1745056239249,-503.42978271,0.00021917,2]
[358393163,1745056239259,-500.0,0.00021917,2]
[358393164,1745056239268,-500.0,0.00021917,2]
[358393165,1745056239280,-500.0,0.00021917,2]
[358393166,1745056239291,-500.0,0.00021917,2]
[358393167,1745056239301,-517.61,0.00021917,2]
[358393168,1745056239313,-500.0,0.00021917,2]
[358393169,1745056239324,-500.0,0.00021917,2]
[358393170,1745056239335,-500.0,0.00021917,2]
[358393171,1745056239347,-703.9,0.00021917,2]
[358393172,1745056239358,-337.80828055,0.00021917,2]
[358393173,1745056239369,-500.0,0.00021917,2]
[358393174,1745056239380,-500.0,0.00021917,2]
[358393175,1745056239391,-500.0,0.00021917,2]
[358393176,1745056239401,-1985.79,0.00021917,2]
[358393177,1745056239411,-500.0,0.00021917,2]
[358393178,1745056239421,-500.0,0.00021917,2]
[358393179,1745056239432,-500.0,0.00021917,2]
[358393180,1745056239443,-500.0,0.00021917,2]
[358393181,1745056239452,-755.46,0.00021917,2]
[358393182,1745056239462,-500.0,0.00021917,2]
[358393183,1745056239474,-500.0,0.00021917,2]
[358393184,1745056239484,-548.21,0.00021917,2]
[358393185,1745056239493,-500.0,0.00021917,2]
[358393186,1745056239504,-595.70007167,0.00021917,2]
[358393187,1745056239514,-500.0,0.00021917,2]
[358393188,1745056239524,-500.0,0.00021917,2]
[358393189,1745056239534,-500.0,0.00021917,2]
[358393190,1745056239544,-890.89,0.00021917,2]
[358393191,1745056239553,-500.0,0.00021917,2]
[358393192,1745056239563,-500.0,0.00021917,2]
[358393193,1745056239573,-527.1,0.00021917,2]
[358393194,1745056239583,-592.75,0.00021917,2]
[358393195,1745056239592,-500.0,0.00021917,2]
[358393196,1745056239603,-151.0,0.00021917,2]
[358393197,1745056239612,-500.0,0.00021917,2]
[358393198,1745056239623,-500.0,0.00021917,2]
[358393199,1745056239634,-624.51,0.00021917,2]
[358393200,1745056239644,-500.0,0.00021917,2]
[358393201,1745056239655,-151.0,0.00021917,2]
[358393202,1745056239665,-500.0,0.00021917,2]
[358393203,1745056239675,-562.74,0.00021917,2]
[358393204,1745056239686,-500.0,0.00021917,2]
[358393205,1745056239695,-1176.84,0.00021917,2]
[358393206,1745056239705,-500.0,0.00021917,2]
[358393207,1745056239715,-500.0,0.00021917,2]
[358393208,1745056239725,-500.0,0.00021917,2]
[358393209,1745056239735,-2966.27,0.00021917,2]
[358393210,1745056239745,-500.0,0.00021917,2]
[358393211,1745056239755,-585.21,0.00021917,2]
[358393212,1745056239767,-500.0,0.00021917,2]
[358393213,1745056239778,-500.0,0.00021917,2]
[358393214,1745056239787,-500.0,0.00021917,2]
[358393215,1745056239798,-500.0,0.00021917,2]
[358393216,1745056239807,-593.55,0.00021917,2]
[358393217,1745056239817,-500.0,0.00021917,2]
[358393218,1745056239827,-500.0,0.00021917,2]
[358393219,1745056239836,-500.0,0.00021917,2]
[358393220,1745056239846,-500.0,0.00021917,2]
[358393221,1745056239855,-500.0,0.00021917,2]
[358393222,1745056239866,-500.0,0.00021917,2]
[358393223,1745056239876,-962.48,0.00021917,2]
[358393224,1745056239886,-500.0,0.00021917,2]
[358393225,1745056239896,-724.65,0.00021917,2]
[358393227,1745056239906,-500.0,0.00021917,2]
[358393228,1745056239916,-500.0,0.00021917,2]
[358393230,1745056239926,-500.0,0.00021917,2]
[358393231,1745056239936,-826.17,0.00021917,2]
[358393232,1745056239946,-500.0,0.00021917,2]
[358393233,1745056239956,-506.79,0.00021917,2]
[358393234,1745056239970,-1629.28,0.00021917,2]
[358393235,1745056239984,-1031.09,0.00021917,2]
[358393236,1745056239995,-500.0,0.00021917,2]
[358393237,1745056240005,-500.0,0.00021917,2]
[358393238,1745056240015,-500.0,0.00021917,2]
[358393239,1745056240025,-557.38,0.00021917,2]
[358393240,1745056240035,-501.24093945,0.00021917,2]
[358393241,1745056240045,-500.0,0.00021917,2]
[358393242,1745056240055,-500.0,0.00021917,2]
[358393243,1745056240065,-471.43669537,0.00021917,2]
[358393244,1745056240075,-596.57,0.00021917,2]
[358393245,1745056240087,-501.31037973,0.00021917,2]
[358393246,1745056240097,-500.97554538,0.00021917,2]
[358393247,1745056240107,-504.68518985,0.00021917,2]
[358393248,1745056240118,-500.0,0.00021917,2]
[358393249,1745056240128,-500.0,0.00021917,2]
[358393250,1745056240138,-643.15,0.00021917,2]
[358393251,1745056240148,-500.0,0.00021917,2]
[358393252,1745056240159,-500.0,0.00021917,2]
[358393253,1745056240170,-500.0,0.00021917,2]
[358393254,1745056240179,-505.14580465,0.00021917,2]
[358393255,1745056240189,-500.0,0.00021917,2]
[358393256,1745056240199,-673.24,0.00021917,2]
[358393257,1745056240208,-660.56,0.00021917,2]
[358393259,1745056240218,-500.0,0.00021917,2]
[358393260,1745056240228,-500.0,0.00021917,2]
[358393261,1745056240240,-500.0,0.00021917,2]
[358393262,1745056240250,-500.0,0.00021917,2]
[358393263,1745056240260,-755.4,0.00021917,2]
[358393264,1745056240270,-525.14288422,0.00021917,2]
[358393265,1745056240280,-500.0,0.00021917,2]
[358393266,1745056240289,-649.01568647,0.00021917,2]
[358393267,1745056240299,-500.0,0.00021917,2]
[358393268,1745056240309,-500.0,0.00021917,2]
[358393269,1745056240319,-566.27,0.00021917,2]
[358393270,1745056240329,-405.24811934,0.00021917,2]
[358393271,1745056240339,-500.0,0.00021917,2]
[358393272,1745056240349,-631.03,0.00021917,2]
[358393273,1745056240359,-500.0,0.00021917,2]
[358393274,1745056240369,-500.0,0.00021917,2]
[358393275,1745056240379,-971.27,0.00021917,2]
[358393277,1745056240388,-500.0,0.00021917,2]
[358393278,1745056240398,-500.0,0.00021917,2]
[358393279,1745056240408,-500.0,0.00021917,2]
[358393280,1745056240418,-500.0,0.00021917,2]
[358393281,1745056240428,-500.0,0.00021917,2]
[358393282,1745056240437,-500.0,0.00021917,2]
[358393284,1745056240447,-500.0,0.00021917,2]
[358393285,1745056240456,-500.0,0.00021917,2]
[358393286,1745056240466,-500.0,0.00021917,2]
[358393287,1745056240477,-500.0,0.00021917,2]
[358393288,1745056240488,-500.0,0.00021917,2]
[358393289,1745056240498,-700.79,0.00021917,2]
[358393290,1745056240508,-199.92219085,0.00021917,2]
[358393291,1745056240518,-677.49,0.00021917,2]
[358393292,1745056240528,-500.0,0.00021917,2]
[358393293,1745056240537,-551.56480109,0.00021917,2]
[358393294,1745056240547,-271.19067317,0.00021917,2]
[358393295,1745056240564,-228.80932683,0.00021917,2]
[358393296,1745056240573,-500.0,0.00021917,2]
[358393297,1745056240583,-500.0,0.00021917,2]
[358393298,1745056240592,-500.0,0.00021917,2]
[358393299,1745056240601,-500.0,0.00021917,2]
[358393301,1745056240611,-500.0,0.00021917,2]
[358393302,1745056240620,-500.0,0.00021917,2]
[358393303,1745056240630,-944.32,0.00021917,2]
[358393304,1745056240639,-84.38925165,0.00021917,2]
[358393305,1745056240664,-392.62297795,0.00021917,2]
[358393306,1745056240675,-22.9877704,0.00021917,2]
[358393307,1745056240685,-504.9341442,0.00021917,2]
[358393308,1745056240695,-285.13951104,0.00021917,2]
[358393309,1745056240706,-214.86048896,0.00021917,2]
[358393310,1745056240715,-307.85243986,0.00021917,2]
[358393435,1745056246774,-192.14756014,0.00021917,2]
[358393436,1745056246785,-500.0,0.00021917,2]
[358393437,1745056246795,-500.0,0.00021917,2]
[358393438,1745056246806,-500.0,0.00021917,2]
[358393439,1745056246816,-500.0,0.00021917,2]
[358393440,1745056246825,-553.83,0.00021917,2]
[358393441,1745056246836,-500.0,0.00021917,2]
[358393442,1745056246846,-1163.6,0.00021917,2]
[358393443,1745056246855,-500.0,0.00021917,2]
[358393444,1745056246865,-500.0,0.00021917,2]
[358393445,1745056246875,-500.0,0.00021917,2]
[358393446,1745056246885,-500.0,0.00021917,2]
[358393447,1745056246895,-500.0,0.00021917,2]
[358393448,1745056246905,-500.0,0.00021917,2]
[358393449,1745056246916,-500.0,0.00021917,2]
[358393450,1745056246926,-500.0,0.00021917,2]
[358393451,1745056246936,-500.0,0.00021917,2]
[358393452,1745056246945,-500.0,0.00021917,2]
[358393453,1745056246955,-500.0,0.00021917,2]
[358393454,1745056246965,-500.0,0.00021917,2]
[358393455,1745056246975,-540.68,0.00021917,2]
[358393456,1745056246985,-500.0,0.00021917,2]
[358393457,1745056246995,-500.0,0.00021917,2]
[358393458,1745056247005,-541.47,0.00021917,2]
[358393459,1745056247015,-500.0,0.00021917,2]
[358393460,1745056247024,-500.0,0.00021917,2]
[358393461,1745056247034,-870.37,0.00021917,2]
[358393462,1745056247043,-500.0,0.00021917,2]
[358393463,1745056247053,-500.0,0.00021917,2]
[358393464,1745056247063,-748.86,0.00021917,2]
[358393465,1745056247072,-500.0,0.00021917,2]
[358393466,1745056247082,-500.0,0.00021917,2]
[358393467,1745056247092,-931.2,0.00021917,2]
[358393468,1745056247102,-500.0,0.00021917,2]
[358393469,1745056247112,-500.0,0.00021917,2]
[358393470,1745056247122,-500.0,0.00021917,2]
[358393471,1745056247131,-1203.09,0.00021917,2]
[358393472,1745056247141,-500.0,0.00021917,2]
[358393473,1745056247154,-500.0,0.00021917,2]
[358393474,1745056247165,-1311.12,0.00021917,2]
[358393475,1745056247174,-500.0,0.00021917,2]
[358393476,1745056247185,-500.0,0.00021917,2]
[358393477,1745056247195,-500.0,0.00021917,2]
[358393478,1745056247205,-500.0,0.00021917,2]
[358393479,1745056247215,-937.92,0.00021917,2]
[358393480,1745056247225,-500.0,0.00021917,2]
[358393481,1745056247236,-500.0,0.00021917,2]
[358393482,1745056247250,-500.0,0.00021917,2]
[358393483,1745056247259,-12181.47,0.00021917,2]
[358393484,1745056247269,-975.88,0.00021917,2]
[358393485,1745056247279,-500.0,0.00021917,2]
[358393486,1745056247291,-500.0,0.00021917,2]
[358393487,1745056247301,-500.0,0.00021917,2]
[358393488,1745056247310,-1742.93,0.00021917,2]
[358393489,1745056247321,-500.0,0.00021917,2]
[358393490,1745056247331,-500.0,0.00021917,2]
[358393491,1745056247341,-3935.23,0.00021917,2]
[358393492,1745056247351,-500.0,0.00021917,2]
[358393493,1745056247362,-3432.26,0.00021917,2]
[358393494,1745056247371,-500.0,0.00021917,2]
[358393495,1745056247381,-500.0,0.00021917,2]
[358393496,1745056247391,-1355.3,0.00021917,2]
[358393497,1745056247401,-525.69,0.00021917,2]
[358393498,1745056247411,-500.0,0.00021917,2]
[358393499,1745056247422,-500.0,0.00021917,2]
[358393500,1745056247432,-500.0,0.00021917,2]
[358393501,1745056247442,-500.0,0.00021917,2]
[358393502,1745056247453,-500.0,0.00021917,2]
[358393503,1745056247463,-500.0,0.00021917,2]
[358393504,1745056247474,-500.0,0.00021917,2]
[358393505,1745056247485,-500.0,0.00021917,2]
[358393506,1745056247496,-500.0,0.00021917,2]
[358393507,1745056247506,-937.24,0.00021917,2]
[358393508,1745056247516,-500.0,0.00021917,2]
[358393509,1745056247526,-513.39549927,0.00021917,2]
[358393510,1745056247536,-722.92,0.00021917,2]
[358393511,1745056247546,-500.0,0.00021917,2]
[358393512,1745056247556,-500.0,0.00021917,2]
[358393513,1745056247566,-913.91,0.00021917,2]
[358393514,1745056247576,-1167.45,0.00021917,2]
[358393515,1745056247586,-500.0,0.00021917,2]
[358393516,1745056247596,-500.0,0.00021917,2]
[358393517,1745056247608,-500.0,0.00021917,2]
[358393518,1745056247618,-500.0,0.00021917,2]
[358393519,1745056247629,-500.0,0.00021917,2]
[358393520,1745056247639,-648.41,0.00021917,2]
[358393521,1745056247650,-500.0,0.00021917,2]
[358393522,1745056247660,-2610.12,0.00021917,2]
[358393523,1745056247670,-500.0,0.00021917,2]
[358393524,1745056247680,-500.0,0.00021917,2]
[358393525,1745056247690,-500.0,0.00021917,2]
[358393526,1745056247700,-556.43,0.00021917,2]
[358393527,1745056247710,-500.0,0.00021917,2]
[358393528,1745056247721,-500.0,0.00021917,2]
[358393529,1745056247731,-500.0,0.00021917,2]
[358393530,1745056247740,-500.0,0.00021917,2]
[358393531,1745056247750,-500.0,0.00021917,2]
[358393532,1745056247759,-500.0,0.00021917,2]
[358393533,1745056247769,-954.39,0.00021917,2]
[358393534,1745056247778,-500.0,0.00021917,2]
[358393535,1745056247788,-500.0,0.00021917,2]
[358393536,1745056247799,-500.0,0.00021917,2]
[358393537,1745056247809,-500.0,0.00021917,2]
[358393538,1745056247819,-500.0,0.00021917,2]
[358393539,1745056247830,-500.0,0.00021917,2]
[358393540,1745056247839,-500.0,0.00021917,2]
[358393541,1745056247850,-500.0,0.00021917,2]
[358393542,1745056247860,-988.04,0.00021917,2]
[358393543,1745056247870,-500.0,0.00021917,2]
[358393544,1745056247880,-500.0,0.00021917,2]
[358393545,1745056247890,-500.0,0.00021917,2]
[358393546,1745056247900,-1198.61,0.00021917,2]
[358393547,1745056247910,-500.0,0.00021917,2]
[358393548,1745056247920,-500.0,0.00021917,2]
[358393549,1745056247930,-500.0,0.00021917,2]
[358393550,1745056247940,-862.01,0.00021917,2]
[358393551,1745056247950,-549.55,0.00021917,2]
[358393552,1745056247960,-4853.68,0.00021917,2]
[358393553,1745056247971,-638.91,0.00021917,2]
[358393554,1745056247981,-500.0,0.00021917,2]
[358393555,1745056247991,-1599.62,0.00021917,2]
[358393556,1745056248001,-500.0,0.00021917,2]
[358393557,1745056248011,-3552.84,0.00021917,2]